bitfinex/quotes_ETHUSD_20220119
["timestamp","ask_amount","ask_price","bid_price","bid_amount"]
[1642601929369,0.00397896,3128.2,3127.9,0.46]
[1642601929571,0.00284211,3128.0,3127.9,1.60983981]
[1642601929768,0.00341054,3128.1,3127.9,1.60983981]
[1642601929971,0.00284211,3128.0,3127.9,1.60983981]
[1642601934318,0.00284211,3128.0,3127.9,1.76971981]
[1642601934915,0.00284211,3128.0,3127.9,4.25983981]
[1642601935115,0.00284211,3128.0,3127.9,1.60483981]
[1642601935364,0.00284211,3128.0,3127.9,1.76471981]
[1642601935764,0.00284211,3128.0,3127.9,1.60483981]
[1642601937265,0.00284211,3128.0,3127.9,1.76471981]
[1642601938873,0.00284211,3128.0,3127.9,1.60483981]
[1642601941517,0.00284211,3128.0,3127.9,1.76471981]
[1642601942320,0.00284211,3128.0,3127.9,20.47471981]
[1642601942758,0.00284211,3128.0,3127.9,24.55284853]
[1642601943967,0.00284211,3128.0,3127.9,26.14285443]
[1642601944166,0.00284211,3128.0,3127.9,30.42664853]
[1642601944365,0.00284211,3128.0,3127.9,32.01665443]
[1642601944970,0.00284211,3128.0,3127.9,30.42664853]
[1642601945865,0.00284211,3128.0,3127.9,32.01665443]
[1642601946065,0.00284211,3128.0,3127.9,30.42664853]
[1642601947815,0.00284211,3128.0,3127.9,33.79884853]
[1642601948016,0.00284211,3128.0,3127.9,30.29884853]
[1642601948818,0.00284211,3128.0,3127.9,33.01740447]
[1642601953073,0.00284211,3128.0,3127.9,8.40152447]
[1642601953272,0.00284211,3128.0,3127.9,4.32339575]
[1642601953471,0.13064211,3128.0,3127.9,4.32339575]
[1642601953671,0.00284211,3128.0,3127.9,4.32339575]
[1642601953871,0.13064211,3128.0,3127.9,4.32339575]
[1642601955427,0.13064211,3128.0,3127.9,3.17355594]
[1642601955821,0.13064211,3128.0,3127.5,3.24388]
[1642601956023,0.13064211,3128.0,3127.6,0.46]
[1642601956024,0.92727,3127.9,3127.6,0.46]
[1642601956221,0.92954369,3127.9,3127.6,0.46]
[1642601956423,0.00170527,3127.8,3127.7,1.16240287]
[1642601956623,0.00170527,3127.8,3127.7,1.62240287]
[1642601959566,0.00170527,3127.8,3127.7,5.70053159]
[1642601960469,0.00170527,3127.8,3127.7,1.62240287]
[1642601961370,0.00170527,3127.8,3127.7,0.46]
[1642601962413,0.12950527,3127.8,3127.7,1.72347325]
[1642601963517,0.00170527,3127.8,3127.7,1.72347325]
[1642601971218,0.75117527,3127.9,3127.8,3.6]
[1642601971416,0.75117527,3127.9,3127.7,1.72347325]
[1642601971417,1.05117527,3127.9,3127.7,0.46]
[1642601971618,0.1278,3127.8,3127.5,0.0008]
[1642601972015,0.92738,3127.8,3127.6,0.00113685]
[1642601972215,0.79958,3127.8,3127.6,0.00113685]
[1642601972760,1.09918,3127.8,3127.6,0.00113685]
[1642601973164,1.227117,3127.8,3127.6,0.00113685]
[1642601973366,1.527117,3127.8,3127.6,0.00113685]
[1642601973570,2.4988144,3127.8,3127.6,0.00113685]
[1642601973866,2.1988144,3127.8,3127.6,0.00113685]
[1642601974465,3.75,3127.6,3127.5,0.0008]
[1642601974665,3.8778,3127.6,3127.5,0.0008]
[1642601974866,4.1778,3127.6,3127.5,0.0008]
[1642601975066,5.28796466,3127.6,3127.5,0.0008]
[1642601975765,1.5994725,3127.4,3127.0,2.71938296]
[1642601975966,1.5994725,3127.4,3126.8,0.62060103]
[1642601975967,1.5994725,3127.4,3126.9,2.71938296]
[1642601976170,1.5994725,3127.4,3127.1,0.00284212]
[1642601976369,1.5994725,3127.4,3126.8,0.00072103]
[1642601976370,6.4,3127.3,3126.8,0.00072103]
[1642601976616,0.79988,3127.1,3126.8,0.00072103]
[1642601976820,6.2279,3127.0,3126.9,0.00113684]
[1642601977045,10.00870889,3127.0,3126.9,0.00113684]
[1642601977321,6.2279,3127.0,3126.9,0.00113684]
[1642601977618,7.9999239,3126.9,3126.2,0.1278]
[1642601977819,0.79997,3126.7,3126.2,0.1278]
[1642601978118,0.79997,3126.7,3126.3,0.00341054]
[1642601978119,0.1279,3126.6,3126.3,0.00341054]
[1642601979319,0.1279,3126.6,3126.3,1.31750347]
[1642601979820,0.79992,3126.7,3126.4,0.00284212]
[1642601980463,0.79992,3126.7,3126.3,1.16693505]
[1642601980665,0.00113685,3126.6,3126.3,1.16693505]
[1642601985512,0.00113685,3126.6,3126.0,1.25981]
[1642601985513,1.10094685,3126.6,3126.0,1.25981]
[1642601985716,1.10094685,3126.6,3125.7,1.5900059]
[1642601985717,0.1279,3126.5,3125.7,1.5900059]
[1642601985916,0.1279,3126.5,3126.1,0.00170527]
[1642601985917,0.799998,3126.4,3126.1,0.00170527]
[1642601986117,0.4279,3126.3,3126.1,0.00170527]
[1642601986316,5.7,3126.2,3125.2,0.46]
[1642601986520,0.8001,3126.0,3125.7,1.23022492]
[1642601986715,0.1279,3125.9,3125.7,1.23022492]
[1642601986914,0.1279,3125.9,3125.8,0.00170527]
[1642601987115,1.1001,3126.0,3125.8,0.00170527]
[1642601987116,0.8001,3126.0,3125.8,0.00170527]
[1642601988365,0.8001,3126.0,3125.9,0.15988]
[1642601988567,0.8001,3126.0,3125.8,0.00170527]
[1642601988768,1.59958,3126.5,3126.0,18.71]
[1642601988769,0.127998,3126.1,3126.0,18.71]
[1642601988966,0.127998,3126.1,3126.0,0.46]
[1642601989169,0.00170527,3126.4,3126.0,0.46]
[1642601989366,0.00170527,3126.4,3126.3,1.56029]
[1642601989568,0.00113685,3126.3,3126.0,0.79979]
[1642601989767,0.79985,3126.3,3126.1,0.46]
[1642601990667,0.79985,3126.3,3126.1,1.96340134]
[1642601991067,0.79985,3126.3,3126.1,0.46]
[1642601992312,0.79985,3126.3,3126.2,0.15988]
[1642601992511,0.79985,3126.3,3126.1,0.46]
[1642601992713,0.80098685,3126.3,3126.1,0.46]
[1642601992917,0.80098685,3126.3,3126.1,1.6303961]
[1642601993319,0.80098685,3126.3,3126.1,3.2298161]
[1642601994121,0.80098685,3126.3,3126.1,1.6303961]
[1642601994325,0.80098685,3126.3,3126.1,0.46]
[1642601994722,1.10098685,3126.3,3126.1,0.46]
[1642601995264,1.22888685,3126.3,3126.1,0.46]
[1642601995665,1.22888685,3126.3,3125.8,0.00170527]
[1642601995867,0.80008,3126.0,3125.0,0.1279]
[1642601996069,3.99569188,3125.9,3125.0,0.1279]
[1642601996266,0.4279,3125.9,3125.1,0.00397897]
[1642601996467,0.4279,3125.9,3125.2,2.72080465]
[1642601996468,6.4,3125.7,3125.2,2.72080465]
[1642601996667,1.03532232,3125.8,3125.0,0.1279]
[1642601996668,3.3,3125.5,3125.3,4.65e-06]
[1642601996873,3.3,3125.5,3125.1,1.47765517]
[1642601996874,0.1279,3125.4,3125.1,1.47765517]
[1642601997070,0.12960527,3125.4,3125.1,1.47765517]
[1642601997268,0.00113685,3125.3,3125.1,1.47765517]
[1642601998074,0.30113685,3125.3,3125.1,1.47765517]
[1642601998674,0.80017,3125.4,3125.3,6.39669761]
[1642601998875,0.1279,3125.9,3125.3,6.39669761]
[1642601998876,0.79988,3125.7,3125.3,6.39669761]
[1642601999139,0.79988,3125.7,3125.4,0.46]
[1642601999738,0.79988,3125.7,3125.4,1.25987]
[1642601999938,0.79988,3125.7,3125.6,0.15988]
[1642602000142,0.00284212,3125.8,3125.6,0.61988]
[1642602000439,0.00227369,3125.7,3125.6,0.61988]
[1642602000637,0.00227369,3125.7,3125.6,23.41024612]
[1642602000838,0.00227369,3125.7,3125.6,6.05167689]
[1642602001040,0.00227369,3125.7,3125.6,1.97131077]
[1642602001941,0.00227369,3125.7,3125.6,1.81143077]
[1642602003072,0.00227369,3125.7,3125.6,1.35143077]
[1642602004571,0.00227369,3125.7,3125.3,0.79669761]
[1642602004971,0.80018,3125.5,3125.3,0.79669761]
[1642602005175,0.92808,3125.5,3125.3,0.79669761]
[1642602005372,1.22808,3125.5,3125.3,0.79669761]
[1642602005875,1.10018,3125.5,3125.3,0.79669761]
[1642602006718,1.10018,3125.5,3125.3,1.94879786]
[1642602007519,0.80018,3125.5,3125.3,1.94879786]
[1642602008324,1.10018,3125.5,3125.3,1.94879786]
[1642602009427,1.10018,3125.5,3125.3,0.79669761]
[1642602009628,1.10018,3125.5,3124.8,0.61988]
[1642602010029,1.10018,3125.5,3124.9,0.00227369]
[1642602010568,1.10018,3125.5,3125.0,1.47934533]
[1642602010975,1.10018,3125.5,3125.1,0.00113685]
[1642602011174,1.10018,3125.5,3124.8,0.46]
[1642602011175,0.80021,3125.3,3124.8,0.46]
[1642602011574,0.80021,3125.3,3124.9,0.00113684]
[1642602011775,0.4279,3125.2,3124.9,0.00113684]
[1642602012176,0.4279,3125.3,3124.9,1.55344204]
[1642602012380,1.90047,3125.2,3124.9,1.5523052]
[1642602012575,0.1279,3125.1,3124.9,1.5523052]
[1642602013778,0.92809,3125.1,3124.5,0.00341054]
[1642602014040,0.80019,3125.1,3124.5,0.00341054]
[1642602014228,0.3,3125.0,3124.3,1.5900059]
[1642602014630,0.0022737,3124.9,3124.3,1.5900059]
[1642602014830,1.43745484,3124.8,3124.3,1.36038976]
[1642602015035,1.43916011,3124.8,3124.3,1.36038976]
[1642602015232,0.00113685,3124.7,3124.3,1.36038976]
[1642602015531,0.00113685,3124.7,3124.2,1.5900059]
[1642602015732,0.00113685,3124.7,3124.0,4.08036612]
[1642602015733,1.6006,3124.6,3124.0,4.08036612]
[1642602015935,1.6006,3124.6,3123.7,3.61742995]
[1642602015936,0.9283405,3124.5,3124.3,0.00113684]
[1642602016332,0.80055,3124.3,3123.5,1.5900059]
[1642602016531,0.80055,3124.3,3123.7,0.00454738]
[1642602016731,0.3,3124.2,3123.5,1.5900059]
[1642602016933,0.3,3124.2,3123.4,0.15988]
[1642602017132,0.00341053,3124.1,3123.7,1.49277115]
[1642602017537,0.00284211,3124.0,3123.4,1.7498859]
[1642602017770,0.80058,3123.8,3123.4,1.7498859]
[1642602017973,1.10058,3123.8,3123.4,0.15988]
[1642602018175,0.00113684,3123.7,3123.4,1.7498859]
[1642602018375,1.10058,3123.8,3123.7,0.00174298]
[1642602018775,1.10058,3123.8,3123.6,1.34829449]
[1642602019775,1.10058,3123.8,3123.5,0.00113685]
[1642602021377,1.10058,3123.8,3123.6,1.4770701]
[1642602022017,1.10058,3123.8,3123.5,0.00113685]
[1642602022617,1.10058,3123.8,3123.4,1.45873334]
[1642602022826,0.00113685,3123.7,3123.4,1.45873334]
[1642602023026,0.00113685,3123.7,3123.4,3.04873924]
[1642602023423,0.00113685,3123.7,3123.4,4.38924776]
[1642602023822,0.00113685,3123.7,3123.5,1.5900059]
[1642602024024,0.00113685,3123.7,3123.4,4.38924776]
[1642602024423,0.80159685,3123.7,3123.5,1.5900059]
[1642602024824,0.80159685,3123.7,3123.4,2.79924186]
[1642602024825,0.80159685,3123.7,3123.6,8.6098859]
[1642602025026,1.8505,3124.2,3123.8,0.08396841]
[1642602025283,1.8505,3124.2,3123.7,7.20003308]
[1642602025284,1.8505,3124.2,3124.0,3.03041094]
[1642602025476,0.00227369,3124.1,3124.0,1.41396717]
[1642602025672,0.00227369,3124.1,3124.0,1.87396717]
[1642602025872,0.00227369,3124.1,3124.0,7.02396717]
[1642602026471,0.00227369,3124.1,3124.0,7.18384717]
[1642602026872,0.00227369,3124.1,3124.0,2.02160479]
[1642602027876,0.00227369,3124.1,3124.0,5.67160479]
[1642602028278,0.00227369,3124.1,3124.0,6.47177479]
[1642602028478,0.00227369,3124.1,3124.0,30.27594653]
[1642602028678,0.00227369,3124.1,3124.0,32.75190611]
[1642602028679,7.369e-05,3124.1,3124.0,32.75190611]
[1642602028878,0.1279,3125.1,3124.2,18.71]
[1642602029126,0.25,3125.2,3124.9,0.0126594]
[1642602029329,0.25,3125.2,3125.1,0.15988]
[1642602029330,0.79996,3125.2,3125.1,0.15988]
[1642602029525,1.56984383,3125.9,3125.1,0.61988]
[1642602029526,1.59999,3125.4,3125.1,0.61988]
[1642602029729,0.00625266,3125.2,3125.1,0.61988]
[1642602029924,0.00625266,3125.2,3125.1,4.36988]
[1642602030633,0.00625266,3125.2,3125.1,1.81472723]
[1642602032877,0.00625266,3125.2,3125.1,5.36472723]
[1642602033477,1.00625266,3125.2,3125.1,5.36472723]
[1642602034380,1.00625266,3125.2,3125.1,1.81472723]
[1642602034982,1.00625266,3125.2,3125.1,1.65484723]
[1642602035184,1.13415266,3125.2,3125.1,1.65484723]
[1642602036918,1.13415266,3125.2,3125.1,4.37635878]
[1642602038826,1.00625266,3125.2,3125.1,4.36364943]
[1642602039122,1.00625266,3125.2,3125.1,4.52352943]
[1642602043373,0.25,3125.5,3125.2,6.4]
[1642602043578,1.2425,3126.3,3125.4,1.02650541]
[1642602043579,0.1279,3126.2,3125.4,1.02650541]
[1642602043773,3.9164,3126.6,3125.5,19.17]
[1642602043774,0.1279,3126.5,3125.5,19.17]
[1642602044026,0.1279,3126.5,3125.6,7.76147767]
[1642602044222,3.9164,3126.6,3125.8,18.71]
[1642602044223,0.00568423,3126.2,3125.8,18.71]
[1642602044423,0.00568423,3126.2,3126.0,18.71]
[1642602044623,1.59928,3126.9,3126.1,28.30139155]
[1642602044824,11.9599,3127.3,3126.1,28.30139155]
[1642602044825,0.1279,3127.2,3126.3,18.71]
[1642602045023,0.1279,3127.2,3126.1,4.1594042]
[1642602045024,0.00909477,3126.8,3126.5,18.71]
[1642602045224,0.00909477,3126.8,3126.6,0.46]
[1642602045422,0.1279,3127.2,3126.6,3.18151155]
[1642602045423,0.00852635,3126.7,3126.6,3.18151155]
[1642602045622,0.00852635,3126.7,3126.6,9.08948606]
[1642602045823,0.00852635,3126.7,3126.6,13.74958517]
[1642602046328,0.00852635,3126.7,3126.6,32.45958517]
[1642602055126,0.00852635,3126.7,3126.6,32.58748517]
[1642602055370,0.00852635,3126.7,3126.6,29.86597362]
[1642602055572,0.00852635,3126.7,3126.6,8.15597362]
[1642602055870,0.00852635,3126.7,3126.6,3.65575451]
[1642602056069,0.00852635,3126.7,3126.6,2.154067]
[1642602056672,0.00852635,3126.7,3126.6,1.994187]
[1642602056870,0.13642635,3126.7,3126.6,1.534187]
[1642602057473,0.13642635,3126.7,3126.6,2.99409144]
[1642602058075,0.00852635,3126.7,3126.6,1.534187]
[1642602059323,0.00852635,3126.7,3126.6,2.84167608]
[1642602059520,0.00852635,3126.7,3126.6,7.45112488]
[1642602059721,0.00852635,3126.7,3126.6,6.65155608]
[1642602060123,0.00852635,3126.7,3126.6,3.00155608]
[1642602061525,0.00852635,3126.7,3126.6,6.10155608]
[1642602061726,0.00852635,3126.7,3126.6,9.24020738]
[1642602062551,0.00852635,3126.7,3126.6,9.70020738]
[1642602062774,0.00852635,3126.7,3126.6,10.49979738]
[1642602063576,0.00852635,3126.7,3126.6,7.39979738]
[1642602063775,0.00852635,3126.7,3126.6,6.44032738]
[1642602063976,0.00852635,3126.7,3126.6,6.60020738]
[1642602064176,0.00852635,3126.7,3126.6,6.91383479]
[1642602064582,0.00852635,3126.7,3126.6,28.47383479]
[1642602064880,0.1279,3127.5,3126.6,28.47383479]
[1642602064881,0.1279,3127.5,3126.7,6.42189]
[1642602065078,0.7994,3128.8,3126.7,6.42189]
[1642602065079,3.9667,3128.3,3127.1,0.7993]
[1642602065282,0.00397896,3127.4,3127.3,9.23389208]
[1642602065479,0.00397896,3127.4,3127.3,16.75114599]
[1642602065679,0.00397896,3127.4,3127.3,10.51429208]
[1642602065878,0.00397896,3127.4,3127.3,31.94407275]
[1642602066522,0.00397896,3127.4,3127.3,32.10395275]
[1642602066722,0.00397896,3127.4,3127.3,30.18351938]
[1642602067424,0.00397896,3127.4,3127.3,32.90317661]
[1642602069828,0.00397896,3127.4,3127.3,32.90318008]
[1642602070870,0.00397896,3127.4,3127.3,7.79318008]
[1642602071070,0.00397896,3127.4,3127.3,7.10068008]
[1642602071270,0.00397896,3127.4,3127.3,25.81068008]
[1642602072275,7.896e-05,3127.4,3127.3,25.81068008]
[1642602072471,6.8949,3128.9,3127.3,25.81068008]
[1642602072472,0.1279,3128.7,3127.4,6.4]
[1642602072672,1.168,3129.2,3127.9,5.746]
[1642602072673,0.1278,3128.8,3127.9,5.746]
[1642602072875,1.168,3129.2,3127.9,5.746]
[1642602072876,0.00511581,3128.3,3128.0,25.35744301]
[1642602073074,0.00511581,3128.3,3128.2,25.26988]
[1642602073274,0.1278,3128.9,3128.3,1.53541275]
[1642602073475,0.1278,3128.9,3128.4,0.61988]
[1642602073675,0.00795793,3128.8,3128.4,0.61988]
[1642602074126,0.00738951,3128.7,3128.4,19.32988]
[1642602074426,0.1278,3128.9,3128.6,3.4089691]
[1642602074636,0.1278,3128.9,3128.7,0.46]
[1642602074831,0.00795793,3128.8,3128.7,0.46]
[1642602075226,0.13584993,3128.8,3128.7,0.46]
[1642602075427,0.00795793,3128.8,3128.7,0.46]
[1642602076030,0.00795793,3128.8,3128.7,0.61988]
[1642602076228,0.00795793,3128.8,3128.7,19.32988]
[1642602077229,0.90486444,3129.0,3128.9,18.71]
[1642602077436,8.6117,3129.7,3129.0,6.4]
[1642602077437,0.1278,3129.6,3129.0,6.4]
[1642602077635,0.1278,3129.6,3129.2,0.79883]
[1642602077877,0.1278,3130.6,3129.3,0.46]
[1642602078078,0.1278,3130.6,3129.3,0.61988]
[1642602078277,0.79886,3130.3,3129.3,1.42568]
[1642602078477,0.1278,3130.2,3130.1,1.09376739]
[1642602078680,0.1278,3130.2,3130.1,1.55376739]
[1642602078681,0.00795793,3130.2,3130.1,1.55376739]
[1642602078878,0.1277,3130.6,3130.2,6.4]
[1642602079080,0.127893,3131.2,3130.4,6.4]
[1642602079579,0.127893,3131.2,3130.7,0.7984736]
[1642602079780,0.00160827,3131.8,3130.8,0.61988]
[1642602079983,0.00160827,3131.8,3131.0,18.71]
[1642602080180,0.00738951,3131.5,3131.1,0.46]
[1642602080378,0.00738951,3131.5,3131.2,18.71]
[1642602080578,0.00682108,3131.4,3131.3,4.46]
[1642602080779,0.00682108,3131.4,3131.3,25.80702087]
[1642602081078,0.00852635,3131.4,3131.3,25.96690087]
[1642602081526,0.00852635,3131.4,3131.3,26.76521087]
[1642602081723,0.2,3132.2,3131.5,18.71]
[1642602081724,0.18732662,3132.2,3131.5,18.71]
[1642602081920,0.18732662,3132.2,3132.0,5.746]
[1642602082220,0.18732662,3132.2,3132.1,1.97923404]
[1642602082420,0.18732662,3132.2,3132.1,3.10656644]
[1642602082624,0.19016874,3132.2,3132.1,3.10656644]
[1642602083223,0.19016874,3132.2,3132.1,5.60656644]
[1642602083426,5.3919311,3133.1,3132.2,6.05]
[1642602083625,5.3919311,3133.1,3132.3,0.46]
[1642602083825,0.00454739,3133.0,3132.3,0.46]
[1642602084226,5.6919311,3133.1,3132.3,0.46]
[1642602084227,0.00397896,3132.9,3132.3,0.46]
[1642602084425,0.00397896,3132.9,3132.7,1.39192603]
[1642602084626,0.00341054,3132.8,3132.7,1.39192603]
[1642602085025,0.00341054,3132.8,3132.4,6.5440308]
[1642602085026,0.00341054,3132.8,3132.4,5.746]
[1642602085302,0.00341054,3132.8,3132.5,3.82766172]
[1642602085490,0.00284212,3132.7,3132.6,5.75739019]
[1642602085688,0.00284212,3132.7,3132.6,10.19017541]
[1642602086092,0.00284212,3132.7,3132.6,5.54017541]
[1642602086290,0.00284212,3132.7,3132.6,5.66767541]
[1642602086692,0.00284212,3132.7,3132.6,1.72727019]
[1642602087294,0.00284212,3132.7,3132.6,0.46]
[1642602087295,2.75284212,3132.7,3132.6,0.46]
[1642602087496,2.75284212,3132.7,3132.0,0.46]
[1642602087899,0.00227369,3132.6,3131.6,0.29807997]
[1642602088096,0.00227369,3132.6,3131.6,0.75807997]
[1642602088295,1.43827755,3132.3,3132.2,1.51221281]
[1642602088496,4.33827755,3132.3,3131.7,0.00284212]
[1642602089622,0.00170527,3132.5,3131.8,1.54358962]
[1642602089827,0.00170527,3132.5,3132.3,1.14055544]
[1642602090024,3.05,3132.7,3131.9,0.00170527]
[1642602090025,0.00113685,3132.4,3131.9,0.00170527]
[1642602090428,3.05,3132.7,3131.8,0.00227369]
[1642602090429,1.21995674,3132.1,3131.8,0.00227369]
[1642602091429,1.51995674,3132.1,3131.8,0.00227369]
[1642602091626,1.21995674,3132.1,3131.5,0.00397896]
[1642602092033,0.00227369,3132.6,3131.5,0.00397896]
[1642602092034,3.9422,3133.7,3131.9,0.01275534]
[1642602092229,2.4252,3134.1,3132.3,0.01264636]
[1642602092430,0.00113685,3132.8,3132.4,0.61988]
[1642602092630,0.00113685,3132.8,3132.4,20.12904504]
[1642602092874,0.00113685,3132.8,3132.5,1.28726349]
[1642602093079,0.00113685,3132.8,3132.6,0.46]
[1642602093274,0.00113685,3132.8,3132.6,3.97516572]
[1642602093475,0.00113685,3132.8,3132.7,2.35]
[1642602093674,0.00113685,3132.8,3132.7,2.81]
[1642602094075,0.00113685,3132.8,3132.7,5.86]
[1642602094275,0.00113685,3132.8,3132.7,9.19307165]
[1642602094475,0.00113685,3132.8,3132.7,8.73307165]
[1642602094675,0.00113685,3132.8,3132.7,5.68307165]
[1642602095079,1.26322116,3132.8,3132.6,0.46]
[1642602095276,1.26322116,3132.8,3132.4,0.00113684]
[1642602095480,1.86322116,3132.8,3132.4,0.00113684]
[1642602095679,1.86322116,3132.8,3132.3,0.00170527]
[1642602095876,1.56322116,3132.8,3132.3,0.00170527]
[1642602096076,1.26322116,3132.8,3132.3,0.00170527]
[1642602097121,0.00113685,3132.8,3132.3,0.00170527]
[1642602099327,1.00113685,3132.8,3132.3,0.00170527]
[1642602099525,1.30113685,3132.8,3132.3,0.00170527]
[1642602099726,1.30113685,3132.8,3131.9,3.43973428]
[1642602099926,1.30113685,3132.8,3131.9,0.00397896]
[1642602100128,1.30113685,3132.8,3132.0,0.00341054]
[1642602100371,1.30113685,3132.8,3132.0,1.24396948]
[1642602100372,0.30113685,3132.8,3132.0,1.24396948]
[1642602100572,0.00113685,3132.8,3132.0,1.40384948]
[1642602100876,0.00113685,3132.8,3132.1,3.89859743]
[1642602101071,0.00113685,3132.8,3132.1,0.46284211]
[1642602101272,1.13291906,3132.8,3132.2,0.00227369]
[1642602101573,1.43291906,3132.8,3132.2,0.46227369]
[1642602101771,1.73291906,3132.8,3132.2,0.46227369]
[1642602101971,1.73291906,3132.8,3132.3,0.00170527]
[1642602102371,0.60113685,3132.8,3132.3,0.00170527]
[1642602102571,0.30113685,3132.8,3132.3,0.00170527]
[1642602102771,0.00113685,3132.8,3132.3,0.00170527]
[1642602103177,0.00113685,3132.8,3131.3,3.88320788]
[1642602103178,6.4,3132.7,3131.3,3.88320788]
[1642602103378,6.7022737,3132.7,3131.4,3.42320788]
[1642602103574,1.00170527,3132.6,3131.4,3.42832369]
[1642602103775,1.80013527,3132.6,3131.4,3.42832369]
[1642602104030,0.30113685,3132.5,3131.4,3.42832369]
[1642602104229,1.48601287,3132.0,3131.4,0.00511581]
[1642602104429,2.08601287,3132.0,3131.4,0.00511581]
[1642602104826,2.08601287,3132.0,3131.1,0.00682108]
[1642602105328,2.08601287,3132.0,3131.5,1.3707892]
[1642602105626,2.08601287,3132.0,3131.6,0.00397896]
[1642602105627,0.3,3131.8,3131.6,0.00397896]
[1642602105829,0.6,3132.0,3131.6,0.00397896]
[1642602106032,1.0,3132.4,3131.6,0.00397896]
[1642602106228,1.3,3132.4,3131.6,0.00397896]
[1642602106428,0.6,3132.4,3131.6,0.00397896]
[1642602106629,1.6,3132.4,3131.6,0.00397896]
[1642602107431,2.06301756,3132.2,3131.6,0.00397896]
[1642602107630,2.36301756,3132.2,3131.6,0.00397896]
[1642602107872,0.3,3132.1,3131.3,0.00568423]
[1642602108678,0.3,3132.1,3131.2,0.00625265]
[1642602109876,0.3,3132.1,3131.2,3.02322541]
[1642602110076,0.3,3132.1,3131.6,1.29549211]
[1642602110477,0.3,3132.1,3131.7,0.00341054]
[1642602112129,0.6,3132.1,3131.2,0.00625265]
[1642602112327,2.06301756,3132.2,3131.2,0.00625265]
[1642602112528,2.06301756,3132.2,3131.2,2.97234542]
[1642602112927,2.06301756,3132.2,3131.3,0.00568423]
[1642602113128,2.06301756,3132.2,3131.5,1.24634885]
[1642602113527,0.3,3132.1,3131.6,0.00397896]
[1642602113931,1.3,3132.1,3131.6,0.00397896]
[1642602114132,1.47500075,3131.7,3131.6,0.00397896]
[1642602114330,1.77500075,3131.7,3131.2,0.00625265]
[1642602114530,2.07500075,3131.7,3131.2,0.00625265]
[1642602114732,2.07500075,3131.7,3131.1,0.00682108]
[1642602115130,2.07500075,3131.7,3131.0,0.0073895]
[1642602115131,3.46894567,3131.7,3131.0,0.0073895]
[1642602115394,3.46894567,3131.7,3130.8,1.26733808]
[1642602115395,0.79872,3131.6,3130.8,1.26733808]
[1642602115593,0.79872,3131.6,3130.9,0.00795793]
[1642602115594,1.17744098,3131.1,3130.9,0.00795793]
[1642602115892,1.17744098,3131.1,3130.7,0.00909477]
[1642602115893,1.47744098,3131.1,3130.7,0.00909477]
[1642602116301,1.77744098,3131.1,3130.7,0.00909477]
[1642602116501,2.57617098,3131.1,3130.6,0.0096632]
[1642602116697,2.27617098,3131.1,3130.5,1.24071517]
[1642602116899,2.27617098,3131.1,3130.6,0.0096632]
[1642602116900,1.09873,3131.1,3130.6,0.0096632]
[1642602117097,1.09873,3131.1,3130.6,3.43287108]
[1642602117098,0.3,3131.1,3130.6,3.43287108]
[1642602117500,4.891,3131.6,3130.7,0.00909477]
[1642602117699,1.59747,3132.2,3130.7,0.00909477]
[1642602117901,0.79865,3131.4,3131.1,1.27230677]
[1642602118101,0.79865,3131.4,3130.8,1.36490232]
[1642602118300,0.79865,3131.4,3130.3,3.42320788]
[1642602118301,1.09865,3131.4,3131.2,0.00625265]
[1642602118500,1.09865,3131.4,3130.9,0.00795793]
[1642602118700,1.09865,3131.4,3130.4,0.01080004]
[1642602118902,1.09865,3131.4,3130.5,2.71712]
[1642602119162,1.09865,3131.4,3130.9,1.36634405]
[1642602119344,1.09865,3131.4,3130.9,2.50732417]
[1642602119546,0.79865,3131.4,3131.0,0.0073895]
[1642602119745,1.09865,3131.4,3131.0,0.0073895]
[1642602119945,0.79865,3131.4,3131.0,0.0073895]
[1642602120552,1.09865,3131.4,3131.0,0.0073895]
[1642602120753,1.59745,3131.3,3131.0,0.0073895]
[1642602120949,1.59745,3131.3,3130.5,0.01023162]
[1642602121151,0.3,3131.2,3130.6,2.71728265]
[1642602121350,0.79877,3131.1,3130.3,0.01136847]
[1642602121550,0.79877,3131.1,3130.7,0.00909477]
[1642602121551,1.21678343,3130.8,3130.7,0.00909477]
[1642602121759,1.51678343,3130.8,3130.5,2.71726859]
[1642602121958,1.51678343,3130.8,3130.6,2.71726859]
[1642602122152,1.51678343,3130.8,3130.6,2.72693179]
[1642602122353,0.3,3130.8,3130.7,2.72636336]
[1642602122553,1.89762,3131.0,3130.7,2.72636336]
[1642602122790,0.3,3131.0,3130.8,5.690943]
[1642602122998,1.1256,3131.8,3130.9,2.71726859]
[1642602123196,6.933,3131.9,3130.9,2.72522652]
[1642602123197,3.8332,3131.9,3130.9,2.72522652]
[1642602123393,1.28380962,3131.6,3131.1,1.33622791]
[1642602123594,1.28380962,3131.6,3131.0,0.0073895]
[1642602123595,1.88380962,3131.6,3131.0,0.0073895]
[1642602123796,1.88380962,3131.6,3131.2,0.00625265]
[1642602123996,1.88380962,3131.6,3130.7,0.00909477]
[1642602124195,1.88380962,3131.6,3131.2,0.00625265]
[1642602124498,1.09864,3131.4,3130.9,3.43116581]
[1642602124696,1.09864,3131.4,3131.0,2.71717633]
[1642602124895,1.09864,3131.4,3131.0,2.72456583]
[1642602125100,1.09864,3131.4,3131.1,2.72399741]
[1642602125299,1.09864,3131.4,3131.1,0.00682108]
[1642602125497,1.59736,3131.3,3131.2,0.00625265]
[1642602125699,1.59736,3131.3,3131.0,0.0073895]
[1642602125897,0.3,3131.2,3131.0,0.0073895]
[1642602126301,1.09866,3131.2,3131.1,2.71709701]
[1642602126532,1.59712,3131.8,3131.1,6.03654132]
[1642602126731,1.59712,3131.8,3131.2,2.71709701]
[1642602126931,1.59712,3131.8,3131.3,3.73490697]
[1642602127136,1.59712,3131.8,3131.4,2.71709701]
[1642602127331,1.59712,3131.8,3131.4,5.66321836]
[1642602127530,1.59712,3131.8,3131.5,0.00454738]
[1642602127732,2.94631644,3131.8,3131.5,0.00454738]
[1642602128031,3.24631644,3131.8,3131.5,0.00454738]
[1642602128431,0.79849,3131.7,3131.5,0.00454738]
[1642602128631,0.3,3131.6,3131.5,0.00454738]
[1642602129430,1.716305,3131.6,3131.5,0.00454738]
[1642602130032,2.016305,3131.6,3131.5,0.00454738]
[1642602130483,0.79863,3131.4,3131.0,0.0073895]
[1642602130686,0.79863,3131.4,3131.1,2.7168901]
[1642602130983,0.79863,3131.4,3131.2,0.00625265]
[1642602131388,0.79863,3131.4,3131.3,2.71679109]